{"text_format":"1","workbook":"xlsx","n_sheets":1,"sheets":["Elektroinstalace pilnice"],"not_rendered":{"charts":0,"images":0,"macros":0,"external_links":0,"defined_names":1,"comments":0,"pivot_tables":0},"unopened":[],"bounds":{"document_bytes":16777216,"sheet_cells":100000,"rows_first":2000,"rows_last":500,"rows_between":2000,"halvings":0,"cell_chars":16384,"cell_head_chars":4096},"cells_cut":0,"cells_raw":0,"read":"whole","date_system":"1900"}

{"sheet":"Elektroinstalace pilnice","index":0,"n_rows":107,"n_cols":7,"rows_kept":107,"cut":false,"hidden":false,"merged":[]}
["NÁRODNÍ HŘEBČÍN KLADRUBY NAD LABEM"]
["ELEKTROINSTALACE PILNICE"]
[]
["1.1 Rozvaděč"]
["název","typ","počet","jedn.",null,"cena Kč","cena Kč"]
["poj PN1 125A gG","PN1 125A gG",3,"ks",null,0,{"$f":"F6*C6","v":0}]
["připojovací sada do 95mm2","CS-*FH000-3NP95",1,"ks",null,0,0]
["jistič","LVN 100C/3",1,"ks",null,0,0]
["podpěťová cívka","SP-LT-A230",1,"ks",null,0,0]
["proudový chránič","OFI-125-4-300AC",1,"ks",null,0,0]
["ochrana proti přepětí I+II stupeň","FLP-B+C MAXI3",1,"ks",null,0,0]
["jistič","LTN 2B/1N",1,"ks",null,0,0]
["jistič","LTN50B/3N",1,"ks",null,0,0]
["jistič","LTN63B/3N",1,"ks",null,0,0]
["jistič","LTN40B/3N",2,"ks",null,0,0]
["jistič","LTN16C/3N",1,"ks",null,0,0]
["kombinovaná ochrana","OLI10B/1N/0,03AC",2,"ks",null,0,0]
["kombinovaná ochrana","OLI16B/1N/0,03AC",1,"ks",null,0,0]
["připojovací nástavec  3*10","N3x10-FH000",3,"ks",null,0,0]
["propojovací lišty","S3L+N",3,"ks",null,0,0]
["svorky ","RSA70",3,"ks",null,0,0]
["svorky ","RSA35zl",1,"ks",null,0,0]
["svorky ","RSA2,5",5,"ks",null,0,0]
["svorky ","RSA2,5M",1,"ks",null,0,0]
["příslušenství svorek",null,10,"kpl",null,0,0]
["pomocný materiál",null,1,"kpl",null,0,0]
["Zapuštená rozvodnicová skříň DZ","DZ43-3503",1,"ks",null,0,0]
[]
["Kryt pro modulární systém DZ s výřezem, výška 150 mm","PD-D-KMV01535",3,"ks",null,0,{"$f":"F29*C29","v":0}]
["Kryt pro modulární systém DZ bez výřezu, výška 100 mm","PD-D-KM01035",1,"ks",null,0,{"$f":"F30*C30","v":0}]
["Přístrojová lišta 50 mm","PD-D-50LP35",4,"ks",null,0,{"$f":"F31*C31","v":0}]
["Posuvný držák 50 mm, 2 ks, hloubka 50 mm","PD-D-50DP50",4,"ks",null,0,{"$f":"F32*C32","v":0}]
[]
["material rozvaděč",null,null,null,null,null,{"$f":"SUM(G6:G32)","v":0}]
["montáž rozvaděč",null,1,"sb",null,0,{"$f":"F35","v":0}]
["rozvadeč celkem",null,null,null,null,null,{"$f":"SUM(G34:G35)","v":0}]
[]
["1.2 Montážní materiál"]
["název","typ","počet","jedn.",null,"cena Kč .","cena Kč"]
["kabelové oko Al",50,3,"ks",null,0,{"$f":"F40*C40","v":0}]
["kabelové oko Al",35,1,"ks",null,0,0]
["zásuvková skříň  jištěná","1x 32/5 ,2x230 V  ",2,"ks",null,0,0]
["zásuvka 5P400V/16A IP44",null,1,"ks",null,0,0]
["zásuvka 230V/16A IP44",null,1,"ks",null,0,0]
["přepínač střídavý ř.6 IP44",null,8,"ks",null,0,0]
["spinač  ř.1 IP44","3553-01929 s ",2,"ks",null,0,0]
["spinač 400V/63A ",null,1,"ks",null,0,0]
["průmyslové sv. LED","max 50W , IP 66, min5500lm,bílé,požár 850C-5s,",17,"ks",null,0,0]
["reflektor LED","IP 65  20W ,bílá",2,"ks",null,0,0]
["tlačítko stop","M22-PV/KC11/IY STOP",1,"ks",null,0,0]
["vývodka",null,1,"ks",null,0,0]
["krabice instalační","KRABICE  ROZBOČOVACÍ IP44, VNITŘNÍ ROZMĚR 80X80X40MM",11,"ks",null,0,0]
["kabel ","1-AYKY 3*70+50",18,"m",null,0,0]
[null,"CYKY J 5*16",55,"m",null,0,0]
[null,"CYKY J 5*10",55,"m",null,0,0]
[null,"CYKYJ 5*2,5",22,"m",null,0,0]
[null,"CYKY j3*2,5",10,"m",null,0,0]
[null,"CYKYJ 3*1,5",250,"m",null,0,0]
[null,"CYKY O 3*1,5",150,"m",null,0,0]
[null," např. Prafladur E90  (HXNFE180/E90)",6,"m",null,0,0]
["VODIČ","H07VU 10",50,"m",null,0,0]
[null,"H07VU 6",50,"m",null,0,0]
["kabelový žlab drátěný","DZ100*50",10,"ks",null,0,0]
["kabelový žlab drátěný","DZ 50*50",15,"ks",null,0,0]
["spojka","SDZ2",60,"ks",null,0,0]
[null,"SDZ1",50,"ks",null,0,0]
["DRŽÁK UNIVERSÁLNÍ","UDZ",11,"ks",null,0,0]
["NOSNÍK","N150",30,"ks",null,0,0]
[null,"NC150",10,"ks",null,0,0]
["pomocné konstrukce  FeZn",null,20,"kg",null,0,0]
["pmocný materiál",null,1,"kpl",null,0,0]
[]
["nosná lišta ","5820/20S",2,"ks",null,0,{"$f":"F73*C73","v":0}]
["vrut požárně odolný","VPO6,5x40ZNCR",16,"ks",null,0,0]
["stahovaví pásek","SKP200x4,6IX",16,"ks",null,0,0]
[null,null,null,null,null,{"$f":"E76*0.2+E76","v":0},0]
["trubka ochranná","4020KC",40,"ks",null,0,0]
["příchytka","5320KB",80,"ks",null,0,0]
["trubka ochranná","4040KC",6,"ks",null,0,0]
["příchytka","5340KB",12,"ks",null,0,0]
["TRUBKA SUPER MONOFLEX","1240L25",10,"m",null,0,0]
["trubka kopoflex ","KF09075 BA",16,"m",null,0,0]
["písek",null,2,"m3",null,0,0]
["drát FeZn 10",null,5,"bm",null,0,0]
["material montážní",null,null,null,null,null,{"$f":"SUM(G40:G84)","v":0}]
[]
["Montáž zařízení",null,null,"sb",null,0,{"$f":"F87","v":0}]
["Demontáž stávajících rozvodů",null,null,"sb",null,0,{"$f":"F88","v":0}]
[]
["1.3 Zemní práce"]
["Výkop rýhy š.400mm hl. 1000 mm",null,12,"bm",null,0,{"$f":"F91*C91","v":0}]
["Montáž pískového lože",null,12,"bm",null,0,{"$f":"F92*C92","v":0}]
["Zasyp jam, rýh",null,12,"bm",null,0,{"$f":"F93*C93","v":0}]
["Oprava dotčených ploch",null,8,"m2",null,0,{"$f":"F94*C94","v":0}]
["Celkem zemní práce",null,null,null,null,null,{"$f":"SUM(G91:G93)","v":0}]
[]
["rekapitulace",null,null,null,null,null,"Kč"]
["rozvaděč",null,null,null,null,null,{"$f":"G36","v":0}]
["materiál montážní",null,null,null,null,null,{"$f":"G85","v":0}]
["montáž zařízení , kompletace",null,null,null,null,null,{"$f":"G87","v":0}]
["demontáž zařízení",null,null,null,null,null,{"$f":"G88","v":0}]
["Zemní práce",null,null,null,null,null,{"$f":"G95","v":0}]
["1.4 Ostatní"]
["revize",null,null,"kpl",null,null,0]
["doprava, přesun hmot",null,null,"kpl",null,null,0]
["vypracování skut. stavu dokumentace",null,null,"kpl",null,null,0]
["cena celkem bez DPH",null,null,null,null,null,{"$f":"SUM(G98:G106)","v":0}]